bitfinex-derivatives/quotes_BTCF0:USTF0_20251202
["timestamp","ask_amount","ask_price","bid_price","bid_amount"]
[1764693422621,0.22471493,90757.0,90756.0,0.5168]
[1764693422822,0.22571493,90757.0,90756.0,0.5168]
[1764693423025,0.00116493,90757.0,90756.0,1.08575]
[1764693423512,0.05903172,90771.0,90770.0,0.2086665]
[1764693423712,0.4597443,90789.0,90772.0,0.2086662]
[1764693423713,0.05903172,90774.0,90772.0,0.2086662]
[1764693423921,0.05903172,90775.0,90774.0,0.208666]
[1764693424322,0.26350172,90775.0,90771.0,0.0110164]
[1764693424523,0.20447,90772.0,90771.0,0.1100864]
[1764693424725,0.20447,90772.0,90771.0,0.6268864]
[1764693425129,0.20370065,90772.0,90771.0,0.6268864]
[1764693425633,0.10510065,90772.0,90771.0,0.7254664]
[1764693426017,0.10510065,90772.0,90771.0,0.7274664]
[1764693426218,0.05903172,90775.0,90774.0,0.110086]
[1764693427131,0.10587,90775.0,90774.0,0.110086]
[1764693427331,0.05903172,90785.0,90784.0,0.0110148]
[1764693427519,0.20447,90785.0,90784.0,0.7254248]
[1764693427824,0.10587,90794.0,90793.0,0.2086637]
[1764693428419,0.20447,90794.0,90793.0,0.22162861]
[1764693428621,0.20447,90794.0,90793.0,0.09907]
[1764693428821,0.10587,90790.0,90789.0,0.0110141]
[1764693429026,0.20447,90790.0,90789.0,0.4708841]
[1764693429222,0.00027531,90806.0,90789.0,0.4708841]
[1764693429223,0.00027531,90806.0,90799.0,0.208663]
[1764693429429,0.00027531,90806.0,90805.0,0.2430022]
[1764693429625,0.00027531,90806.0,90805.0,0.2086622]
[1764693430022,0.00027531,90806.0,90805.0,0.7253822]
[1764693431022,0.3608,90821.0,90805.0,0.7253822]
[1764693431023,0.05903172,90828.0,90820.0,0.09907]
[1764693431331,0.20447,90828.0,90827.0,0.0110095]
[1764693431516,0.20447,90828.0,90827.0,0.1100795]
[1764693431721,0.20447,90823.0,90822.0,0.3608]
[1764693431926,0.20447,90823.0,90822.0,0.8884902]
[1764693432126,0.20447,90819.0,90818.0,0.38175783]
[1764693432327,0.20447,90819.0,90818.0,0.51668]
[1764693432528,0.20447,90816.0,90815.0,0.00016515]
[1764693432920,0.20447,90816.0,90815.0,0.51684515]
[1764693433532,0.20447,90816.0,90815.0,0.51680515]
[1764693434916,0.20447,90816.0,90815.0,0.00016515]
[1764693435424,0.20447,90801.0,90800.0,0.0110128]
[1764693435630,0.20447,90796.0,90795.0,0.3718134]
[1764693435819,0.20447,90796.0,90795.0,0.5276134]
[1764693436024,0.0986,90793.0,90792.0,0.0110138]
[1764693436226,0.20447,90793.0,90792.0,0.5275738]
[1764693436422,0.10587,90793.0,90792.0,0.7252238]
[1764693436930,0.10587,90793.0,90792.0,1.0860238]
[1764693437122,0.10587,90793.0,90792.0,0.5694638]
[1764693437317,0.10587,90793.0,90792.0,1.0860238]
[1764693437529,0.00016482,90802.0,90801.0,0.2086627]
[1764693438026,0.3608,90825.0,90814.0,0.19765]
[1764693438228,0.20447,90816.0,90815.0,0.51656]
[1764693438622,0.56527,90816.0,90815.0,0.51656]
[1764693438822,0.20447,90816.0,90815.0,0.51656]
[1764693439019,0.20447,90812.0,90808.0,0.3608]
[1764693439219,0.05903172,90832.0,90822.0,0.0110101]
[1764693439533,0.20447,90823.0,90818.0,0.3718106]
[1764693439831,0.20447,90823.0,90822.0,0.09907]
[1764693440136,0.20447,90835.0,90834.0,0.09907]
[1764693440431,0.0649,90844.0,90822.0,0.51656]
[1764693440432,0.20447,90830.0,90829.0,0.87732]
[1764693440616,0.20447,90830.0,90829.0,0.51652]
[1764693442126,0.0649,90831.0,90825.0,0.00016515]
[1764693442127,0.20447,90826.0,90825.0,0.00016515]
[1764693442430,0.56527,90826.0,90825.0,0.00016515]
[1764693443437,0.56527,90826.0,90825.0,0.00416515]
[1764693444040,0.56527,90826.0,90825.0,0.00616515]
[1764693447340,0.56527,90826.0,90825.0,0.20381515]
[1764693447636,0.56527,90826.0,90825.0,0.10523515]
[1764693447843,0.0649,90831.0,90825.0,0.10523515]
[1764693447844,0.26937,90844.0,90843.0,0.0110076]
[1764693448036,0.26937,90844.0,90834.0,1.07489]
[1764693448037,0.10587,90835.0,90834.0,1.07489]
[1764693448245,0.20447,90835.0,90834.0,0.5274487]
[1764693448848,0.20447,90835.0,90834.0,0.8882487]
[1764693449540,0.20447,90835.0,90834.0,0.87724]
[1764693449753,0.20447,90835.0,90834.0,1.07989]
[1764693450043,0.20447,90835.0,90834.0,0.3658]
[1764693450833,0.20447,90835.0,90834.0,0.46487]
[1764693451031,0.10587,90835.0,90834.0,0.56345]
[1764693451535,0.20447,90835.0,90834.0,0.3658]
[1764693451735,0.20447,90835.0,90834.0,0.005]
[1764693452433,0.20447,90835.0,90834.0,0.52136]
[1764693452642,0.20447,90835.0,90834.0,0.005]
[1764693453036,0.20447,90835.0,90834.0,0.3658]
[1764693453231,0.24206,90844.0,90843.0,0.1910576]
[1764693453440,0.00027519,90846.0,90845.0,0.18005]
[1764693453641,0.00027519,90846.0,90845.0,0.19250399]
[1764693455032,0.08804,90864.0,90863.0,0.1910552]
[1764693455232,0.17716,90864.0,90863.0,0.1910552]
[1764693455546,0.17716,90856.0,90855.0,0.3608]
[1764693455745,0.17716,90856.0,90855.0,0.87712]
[1764693456137,0.17716,90856.0,90855.0,1.05717]
[1764693456342,0.12393172,90870.0,90866.0,0.09055]
[1764693456543,0.08804,90867.0,90866.0,0.1015548]
[1764693456737,0.08804,90867.0,90866.0,0.09055]
[1764693456936,0.08804,90867.0,90863.0,0.004]
[1764693456937,0.23881,90864.0,90863.0,0.004]
[1764693457138,0.59961,90864.0,90863.0,0.004]
[1764693457435,0.59961,90864.0,90863.0,0.002]
[1764693457841,0.17716,90857.0,90856.0,0.47924]
[1764693458644,0.17716,90856.0,90855.0,0.51628]
[1764693458844,0.17716,90855.0,90854.0,0.00016515]
[1764693460635,0.18138,90839.0,90838.0,0.1330082]
[1764693460835,0.18138,90839.0,90838.0,0.02343743]
[1764693461040,0.18138,90839.0,90838.0,0.20793743]
[1764693461554,0.44756,90845.0,90844.0,0.1955075]
[1764693461755,0.44756,90845.0,90844.0,0.0110075]
[1764693461756,0.18138,90845.0,90844.0,0.0110075]
[1764693462051,0.00016515,90848.0,90847.0,0.1955071]
[1764693462352,0.08676,90859.0,90858.0,0.1955058]
[1764693462549,0.0587813,90862.0,90861.0,0.1955054]
[1764693462734,0.18138,90862.0,90861.0,0.5272054]
[1764693462940,0.18138,90862.0,90861.0,0.5162]
[1764693463343,0.18138,90853.0,90852.0,0.00016515]
[1764693463542,0.54218,90853.0,90852.0,0.49472515]
[1764693463745,0.18138,90853.0,90852.0,0.49472515]
[1764693463947,0.18138,90853.0,90852.0,0.67922515]
[1764693464142,0.08676,90853.0,90852.0,0.67922515]
[1764693464339,0.18138,90861.0,90860.0,0.0110055]
[1764693464743,0.05876248,90865.0,90864.0,0.1955051]
[1764693464939,0.18138,90865.0,90864.0,0.1845]
[1764693465140,0.18138,90865.0,90856.0,0.3608]
[1764693465334,0.3608,90864.0,90856.0,0.3608]
[1764693465642,0.08676,90860.0,90859.0,0.1955056]
[1764693465842,0.44756,90864.0,90863.0,0.1845]
[1764693466252,0.08676,90864.0,90863.0,0.1955052]
[1764693466746,0.18138,90857.0,90856.0,0.3608]
[1764693467349,0.18138,90857.0,90856.0,0.3628]
[1764693467839,0.18138,90857.0,90856.0,0.3638]
[1764693468254,0.18138,90857.0,90856.0,0.87996]
[1764693468453,0.18138,90857.0,90856.0,0.5503]
[1764693468751,0.18138,90857.0,90856.0,0.3658]
[1764693468949,0.18138,90857.0,90856.0,0.005]
[1764693469337,0.18138,90853.0,90852.0,0.00016515]
[1764693469537,0.54218,90853.0,90852.0,0.00016515]
[1764693469747,0.18138,90853.0,90852.0,0.00016515]
[1764693470654,0.18138,90853.0,90852.0,0.00216515]
[1764693471253,0.18138,90853.0,90852.0,0.09566515]
[1764693471450,0.18138,90853.0,90852.0,0.00216515]
[1764693471654,0.18138,90853.0,90852.0,0.00416515]
[1764693472353,0.18138,90853.0,90852.0,0.00216515]
[1764693472554,0.18138,90853.0,90852.0,0.00516515]
[1764693474443,0.18238,90853.0,90852.0,0.00316515]
[1764693474642,0.18138,90829.0,90828.0,0.0935]
[1764693474849,0.08676,90822.0,90821.0,0.5563103]
[1764693475053,0.08676,90822.0,90821.0,1.08480325]
[1764693475249,0.18138,90831.0,90830.0,0.1955091]
[1764693475456,0.05888707,90832.0,90831.0,0.1845]
[1764693475750,0.08676,90826.0,90825.0,0.1955098]
[1764693475949,0.18138,90823.0,90822.0,0.00016515]
[1764693476151,0.18138,90823.0,90822.0,0.70078515]
[1764693476450,0.08676,90829.0,90828.0,0.1955094]
[1764693476854,0.41968707,90830.0,90829.0,0.1845]
[1764693477150,0.004,90853.0,90828.0,0.0110094]
[1764693477151,0.08676,90835.0,90834.0,0.1955087]
[1764693477348,0.05894245,90839.0,90838.0,0.1845]
[1764693477648,0.18154515,90841.0,90840.0,0.1845]
[1764693478747,0.18154515,90841.0,90840.0,0.70062]
[1764693478947,0.18654515,90841.0,90840.0,0.70062]
[1764693479252,0.18654515,90841.0,90830.0,0.0110091]
[1764693479253,0.36596515,90841.0,90830.0,0.0110091]
[1764693479443,0.36596515,90841.0,90830.0,0.1955091]
[1764693479444,0.08676,90831.0,90830.0,0.1955091]
[1764693479641,0.05444,90838.0,90836.0,0.1045084]
[1764693479642,0.18138,90837.0,90836.0,0.1045084]
[1764693479844,0.18138,90837.0,90836.0,0.1955084]
[1764693480049,0.08676,90837.0,90836.0,0.1955084]
[1764693480353,0.05895362,90840.0,90839.0,0.1955081]
[1764693480552,0.00916515,90841.0,90840.0,0.1845]
[1764693480848,0.00916515,90841.0,90828.0,0.3718094]
[1764693480849,0.18138,90829.0,90828.0,0.3608]
[1764693481054,0.05895064,90834.0,90831.0,0.1845]
[1764693481252,0.05895064,90838.0,90836.0,0.1955085]
[1764693481563,0.001,90837.0,90836.0,0.1955085]
[1764693481745,0.001,90837.0,90836.0,0.5563085]
[1764693482145,0.00816515,90841.0,90840.0,0.196508]
[1764693482354,0.00816515,90841.0,90840.0,0.712628]
[1764693482752,0.00016515,90841.0,90840.0,0.711628]
[1764693483142,0.11339064,90860.0,90840.0,0.527128]
[1764693483348,0.11339064,90860.0,90858.0,0.0935]
[1764693483349,0.53094,90859.0,90858.0,0.0935]
[1764693483751,0.53094,90859.0,90854.0,0.0110063]
[1764693483752,0.16305,90847.0,90846.0,0.16249]
[1764693484448,0.16305,90847.0,90846.0,0.67857]
[1764693485253,0.42075064,90859.0,90846.0,0.51608]
[1764693485454,0.16305,90852.0,90851.0,0.1734965]
[1764693486142,0.3618,90859.0,90858.0,0.0935658]
[1764693486143,0.52485,90859.0,90858.0,0.0935658]
[1764693486351,0.001,90859.0,90858.0,0.1734958]
[1764693486553,0.16405,90859.0,90858.0,0.6895758]
[1764693486853,0.15905,90859.0,90858.0,0.6895758]
[1764693487255,0.52385,90869.0,90868.0,0.1734946]
[1764693487443,0.05895064,90872.0,90871.0,0.1734942]
[1764693487649,0.16305,90876.0,90875.0,0.16249]
[1764693487844,0.43945511,90888.0,90863.0,0.3608]
[1764693487845,0.08338,90864.0,90863.0,0.3608]
[1764693488053,0.08338,90864.0,90860.0,0.22712457]
[1764693488054,0.16305,90861.0,90860.0,0.30968457]
[1764693488247,0.16305,90861.0,90860.0,0.67853]
[1764693488446,0.16305,90861.0,90860.0,0.16249]
[1764693488648,0.21759,90860.0,90859.0,0.16265515]
[1764693488846,0.05454,90871.0,90859.0,0.16265515]
[1764693489057,0.21759,90871.0,90870.0,0.1734944]
[1764693489259,0.07967,90880.0,90879.0,0.0110032]
[1764693489463,0.16305,90880.0,90879.0,0.1734932]
[1764693489662,0.16332507,90886.0,90885.0,0.16249]
[1764693489958,0.16305,90880.0,90879.0,0.1734932]
[1764693490460,0.16305,90880.0,90879.0,0.16249]
[1764693490667,0.16305,90880.0,90879.0,0.08356]
[1764693490961,0.16305,90880.0,90879.0,0.10738329]
[1764693491154,0.16305,90880.0,90879.0,0.18931329]
[1764693491544,0.16305,90880.0,90879.0,0.17830999]
[1764693491748,0.16305,90880.0,90879.0,0.69430999]
[1764693492764,0.00027507,90886.0,90885.0,0.1734925]
[1764693492953,0.07967,90898.0,90897.0,0.1734911]
[1764693493154,0.07967,90898.0,90897.0,1.0502511]
[1764693493351,0.16305,90898.0,90897.0,0.5342911]
[1764693493546,0.16305,90898.0,90897.0,0.52329]
[1764693493751,0.16305,90898.0,90897.0,1.03925]
[1764693494151,0.05895064,90914.0,90899.0,0.16249]
[1764693494350,0.12971,90900.0,90899.0,0.16249]
[1764693494753,0.05004,90900.0,90899.0,0.16249]
[1764693494961,0.0660646,90900.0,90899.0,0.67841]
[1764693495155,0.2291146,90900.0,90899.0,0.16249]
[1764693495363,0.16305,90898.0,90897.0,0.3618]
[1764693495663,0.16305,90898.0,90897.0,0.87772]
[1764693495859,0.16405,90898.0,90897.0,0.51692]
[1764693496160,0.1800746,90898.0,90897.0,0.51692]
[1764693496358,0.1800746,90898.0,90888.0,0.30984963]
[1764693496359,0.05454,90893.0,90888.0,0.30984963]
[1764693496663,0.16305,90889.0,90888.0,0.17365726]
[1764693496854,0.16305,90889.0,90888.0,0.68957726]
[1764693497058,0.0160246,90898.0,90897.0,0.1754911]
[1764693497262,0.05004,90900.0,90899.0,0.1464654]
[1764693498864,0.16305,90889.0,90888.0,0.08472506]
[1764693499055,0.16305,90889.0,90888.0,0.60156506]
[1764693499252,0.16305,90889.0,90888.0,0.08572506]
[1764693499451,0.16305,90889.0,90888.0,0.59956506]
[1764693499658,0.16305,90889.0,90888.0,0.00016506]
[1764693499965,0.16305,90889.0,90888.0,0.51600506]
[1764693500465,0.16305,90889.0,90888.0,0.00216506]
[1764693500650,0.16305,90889.0,90888.0,0.00316506]
[1764693501857,0.16305,90889.0,90867.0,0.3608]
[1764693501858,0.16305,90868.0,90867.0,0.3608]
[1764693502164,0.07967,90864.0,90863.0,0.1734951]
[1764693502361,0.21759,90871.0,90870.0,0.1734944]
[1764693502859,0.21759,90871.0,90870.0,0.67829]
[1764693503067,0.16305,90870.0,90869.0,0.0110044]
[1764693503264,0.16305,90870.0,90869.0,0.5268044]
[1764693503463,0.07967,90870.0,90869.0,0.6892944]
[1764693503850,0.36096475,90880.0,90879.0,0.0935633]
[1764693503851,0.16321475,90880.0,90879.0,0.0935633]
[1764693504057,0.00016475,90880.0,90879.0,0.1734933]
[1764693504562,0.07983475,90880.0,90879.0,0.1734933]
[1764693504759,0.16321475,90880.0,90879.0,0.0110033]
[1764693504960,0.00016475,90880.0,90879.0,0.1734933]
[1764693505165,0.00016475,90880.0,90879.0,0.6892933]
[1764693505366,0.16321475,90880.0,90879.0,0.5158]
[1764693505566,0.16321475,90880.0,90870.0,0.22812457]
[1764693505767,0.07967,90872.0,90871.0,0.67829]
[1764693505964,0.07967,90872.0,90871.0,0.6892942]
[1764693506665,0.16821475,90880.0,90879.0,0.0110033]
[1764693507167,0.16321475,90880.0,90879.0,0.1734933]
[1764693507368,0.00016475,90880.0,90879.0,0.1734933]
[1764693507664,0.16321475,90880.0,90879.0,0.67825]
[1764693508460,0.00016475,90880.0,90879.0,0.67825]
[1764693509255,0.00516475,90880.0,90879.0,0.67825]
[1764693510867,0.08483475,90880.0,90879.0,0.16249]
[1764693511063,0.16821475,90880.0,90879.0,0.16249]
[1764693511284,0.16821475,90880.0,90879.0,0.67825]
[1764693511676,0.16821475,90880.0,90879.0,0.51576]
[1764693511971,0.21759,90871.0,90870.0,0.23812897]
[1764693512167,0.21759,90871.0,90870.0,0.5267644]
[1764693512475,0.21759,90871.0,90870.0,0.6892544]
[1764693513075,0.21859,90871.0,90870.0,0.6892544]
[1764693513464,0.16405,90871.0,90870.0,0.6892544]
[1764693513665,0.17205,90871.0,90870.0,0.6902544]
[1764693514962,0.009,90871.0,90870.0,0.6902544]
[1764693516573,0.00016475,90880.0,90879.0,0.1648233]
[1764693516771,0.00016475,90880.0,90879.0,0.5256233]
[1764693517863,0.07381475,90880.0,90879.0,0.5256233]
[1764693518561,0.14896475,90880.0,90879.0,0.5256233]
[1764693518764,0.00016475,90880.0,90874.0,0.0110038]
[1764693519079,0.00016475,90880.0,90870.0,0.22812457]
[1764693519080,0.1488,90877.0,90876.0,0.0853736]
[1764693519387,0.1488,90877.0,90876.0,0.6805436]
[1764693520262,0.00016475,90880.0,90876.0,0.6805436]
[1764693520466,0.00016475,90880.0,90879.0,0.1648233]
[1764693520872,0.14896475,90880.0,90879.0,0.1648233]
[1764693521067,0.14896475,90880.0,90879.0,0.0110033]
[1764693521863,0.1498,90877.0,90876.0,0.51572]
[1764693522262,0.1488,90876.0,90875.0,0.0110036]
[1764693522465,0.1488,90876.0,90875.0,0.5266836]
[1764693523074,0.1488,90876.0,90875.0,0.6010536]
[1764693523276,0.00016475,90880.0,90879.0,0.1648233]
[1764693523475,0.07381475,90880.0,90879.0,0.5256233]
[1764693523680,0.00016475,90880.0,90879.0,0.5256233]
[1764693524075,0.07381475,90880.0,90879.0,0.5256233]
[1764693524280,0.14896475,90880.0,90879.0,0.3608]
[1764693524470,0.1488,90870.0,90869.0,0.3608]
[1764693524665,0.1488,90870.0,90863.0,0.02946937]
[1764693524666,0.1488,90864.0,90863.0,0.51568]
[1764693525791,0.001,90864.0,90863.0,0.6695]
[1764693526493,0.001,90864.0,90863.0,0.6805052]
[1764693526674,0.07465,90864.0,90863.0,0.6805052]
[1764693526978,0.1498,90864.0,90863.0,0.6805052]
[1764693527177,0.07465,90864.0,90863.0,0.6805052]
[1764693527377,0.001,90864.0,90863.0,0.1648252]
[1764693527587,0.001,90864.0,90863.0,0.6805052]
[1764693528284,0.001,90864.0,90863.0,0.70997457]
[1764693529776,0.001,90864.0,90863.0,1.0413052]
[1764693529985,0.00016475,90880.0,90879.0,0.1648233]
[1764693530289,0.07381475,90880.0,90879.0,0.6805033]
[1764693530477,0.14896475,90880.0,90879.0,0.6805033]
[1764693531178,0.14896475,90880.0,90879.0,0.6865033]
[1764693531484,0.07381475,90880.0,90879.0,0.6865033]
[1764693531680,0.00016475,90880.0,90879.0,0.6865033]
[1764693533590,0.07381475,90880.0,90879.0,0.6865033]
[1764693533889,0.00016475,90880.0,90879.0,0.6865033]
[1764693534422,0.14896475,90880.0,90879.0,0.006]
[1764693534685,0.1488,90862.0,90856.0,0.05934043]
[1764693534886,0.1488,90862.0,90851.0,0.0110066]
[1764693535087,0.1488,90862.0,90861.0,0.0397064]
[1764693535493,0.04788,90864.0,90863.0,0.15382]
[1764693535791,0.07515,90865.0,90864.0,0.011005]
[1764693535981,0.17149699,90865.0,90864.0,0.011005]
[1764693536383,0.17149699,90865.0,90864.0,0.164825]
[1764693536986,0.17149699,90865.0,90864.0,0.07437]
[1764693537193,0.1488,90863.0,90862.0,0.3608]
[1764693537383,0.17149699,90863.0,90862.0,0.3608]
[1764693537686,0.17149699,90863.0,90862.0,0.91598134]
[1764693538185,0.17149699,90863.0,90862.0,0.03954134]
[1764693538494,0.17149699,90863.0,90862.0,0.55518134]
[1764693538688,0.17249699,90863.0,90862.0,0.55518134]
[1764693539588,0.17249699,90863.0,90862.0,0.03954134]
[1764693540088,0.17149699,90863.0,90862.0,0.03954134]
[1764693540292,0.1488,90862.0,90861.0,0.00016506]
[1764693540593,0.17149699,90862.0,90861.0,0.00016506]
[1764693541183,0.17149699,90862.0,90861.0,0.16499046]
[1764693541390,0.17149699,90862.0,90861.0,0.2045318]
[1764693541892,0.17249699,90862.0,90861.0,0.2045318]
[1764693542397,0.17249699,90862.0,90861.0,0.16499046]
[1764693542688,0.02369699,90862.0,90861.0,0.2045318]
[1764693543391,0.16563699,90862.0,90861.0,0.1935264]
[1764693543790,0.16563699,90862.0,90861.0,0.7092064]
[1764693544280,0.02369699,90862.0,90861.0,0.7092064]
[1764693544992,0.001,90862.0,90861.0,0.7092064]
[1764693545494,0.001,90862.0,90861.0,0.1935264]
[1764693545678,0.16559004,90862.0,90861.0,0.1140764]
[1764693545879,0.16559004,90862.0,90861.0,0.6297164]
[1764693547084,0.16559004,90862.0,90861.0,0.0397064]
[1764693547978,0.16559004,90862.0,90861.0,0.0507118]
[1764693548179,0.16559004,90862.0,90861.0,0.1979118]
[1764693548378,0.02365004,90862.0,90861.0,0.1979118]
[1764693548578,0.16559004,90862.0,90861.0,0.1979118]
[1764693549092,0.16559004,90862.0,90861.0,0.1222718]
[1764693549390,0.16559004,90862.0,90861.0,0.0507118]
[1764693550593,0.09315004,90862.0,90861.0,0.1979118]
[1764693550898,0.09415004,90862.0,90861.0,0.1979118]
[1764693551187,0.02365004,90862.0,90861.0,0.1979118]
[1764693551788,0.16559004,90862.0,90861.0,0.7135518]
[1764693552190,0.16459004,90862.0,90861.0,0.7135518]
[1764693552386,0.16559004,90862.0,90861.0,0.7135518]
[1764693552988,0.16459004,90862.0,90861.0,0.7135518]
[1764693553293,0.16559004,90862.0,90861.0,0.7135518]
[1764693553893,0.16559004,90862.0,90861.0,0.1222718]
[1764693554093,0.16559004,90862.0,90861.0,0.5663518]
[1764693554686,0.16559004,90862.0,90861.0,0.5553464]
[1764693556695,0.16559004,90862.0,90861.0,0.0397064]
[1764693557292,0.14194,90847.0,90824.0,0.0110099]
[1764693557489,0.02114,90838.0,90827.0,0.04757]
[1764693557690,0.3608,90834.0,90833.0,0.1582088]
[1764693557893,0.38345004,90834.0,90833.0,0.1582088]
[1764693558088,0.52539004,90834.0,90833.0,0.1472]
[1764693558288,0.52539004,90834.0,90833.0,0.07156]
[1764693558493,0.52550725,90834.0,90833.0,0.07156]
[1764693558700,0.14194,90825.0,90824.0,0.00016506]
[1764693558894,0.14194,90825.0,90824.0,0.14736506]
[1764693558895,0.02266689,90825.0,90824.0,0.14736506]
[1764693559096,0.36091721,90834.0,90824.0,0.14736506]
[1764693559295,0.02266944,90833.0,90824.0,0.15988133]
[1764693559495,0.0705,90825.0,90824.0,0.14736506]
[1764693559697,0.36091721,90834.0,90825.0,0.0110098]
[1764693559892,0.02340331,90833.0,90825.0,0.0110098]
[1764693560091,0.02340331,90832.0,90825.0,0.0110098]
[1764693560291,0.02340331,90831.0,90824.0,0.0126617]
[1764693560492,0.02340331,90830.0,90824.0,0.0126617]
[1764693560709,0.02340331,90829.0,90824.0,0.0126617]
[1764693561001,0.4313,90826.0,90825.0,0.1472]
[1764693561396,0.50274,90826.0,90825.0,0.66284]
[1764693562097,0.52613039,90826.0,90825.0,0.66284]
[1764693562300,0.52613039,90826.0,90824.0,0.00016506]
[1764693562301,0.14194,90825.0,90824.0,0.00016506]
[1764693562486,0.16533039,90825.0,90824.0,0.00016506]
[1764693562692,0.14194,90811.0,90810.0,0.0825716]
[1764693562995,0.14194,90811.0,90806.0,0.07183531]
[1764693562996,0.14194,90807.0,90806.0,0.07183531]
[1764693563202,0.14194,90807.0,90806.0,0.66315531]
[1764693563203,0.14205872,90807.0,90806.0,0.66315531]
[1764693563399,0.16543826,90807.0,90806.0,0.66315531]
[1764693563996,0.16543826,90807.0,90806.0,0.67523359]
[1764693563997,0.52623826,90807.0,90806.0,0.67523359]
[1764693564392,0.52623826,90807.0,90806.0,0.07183531]
[1764693564603,0.52623826,90807.0,90806.0,0.00027531]
[1764693564903,0.14194,90798.0,90797.0,0.00016515]
[1764693565087,0.16531954,90798.0,90797.0,0.00016515]
[1764693565401,0.16531954,90798.0,90797.0,0.14736515]
[1764693565998,0.16631954,90798.0,90797.0,0.14736515]
[1764693566197,0.02437954,90798.0,90797.0,0.14736515]
[1764693566504,0.09487954,90798.0,90797.0,0.66308515]
[1764693566798,0.16631954,90798.0,90797.0,0.07172515]
[1764693566997,0.16631954,90798.0,90797.0,0.58744515]
[1764693567186,0.16631954,90798.0,90797.0,0.66308515]
[1764693567392,0.001,90798.0,90797.0,0.66308515]
[1764693567592,0.00011872,90807.0,90806.0,0.1472]
[1764693567793,0.00016515,90816.0,90815.0,0.158211]
[1764693567998,0.16546949,90816.0,90815.0,0.07156]
[1764693568300,0.02352949,90816.0,90815.0,0.66296]
[1764693568805,0.02352949,90816.0,90815.0,0.1472]
[1764693568992,0.02452949,90816.0,90815.0,0.66296]
[1764693569394,0.00116515,90816.0,90815.0,0.66296]
[1764693571104,0.02453985,90816.0,90815.0,0.66296]
[1764693571304,0.02353985,90816.0,90815.0,0.673971]
[1764693571493,0.00016515,90816.0,90815.0,0.673971]
[1764693571992,0.00016515,90816.0,90815.0,0.66296]
[1764693572196,0.00016515,90816.0,90815.0,0.673971]
[1764693572906,0.00116515,90816.0,90815.0,0.673971]
[1764693573496,0.00116515,90816.0,90815.0,0.66296]
[1764693574004,0.00116515,90816.0,90815.0,0.1472]
[1764693574203,0.00116515,90816.0,90815.0,0.66296]
[1764693574395,0.07166515,90816.0,90815.0,0.66296]
[1764693574596,0.00116515,90816.0,90815.0,0.1472]
[1764693574797,0.00116515,90816.0,90815.0,0.66296]
[1764693575503,0.00116515,90816.0,90815.0,0.1472]
[1764693575704,0.00116515,90816.0,90815.0,0.66296]
[1764693576598,0.00116515,90816.0,90804.0,0.14699]
[1764693576599,0.07534,90805.0,90804.0,0.14699]
[1764693576800,0.14668,90805.0,90804.0,0.14699]
[1764693577000,0.02337574,90805.0,90804.0,0.66275]
[1764693577200,0.02337574,90805.0,90804.0,0.70854]
[1764693577505,0.3608,90810.0,90809.0,0.14699]
[1764693577701,0.45951509,90810.0,90809.0,0.14699]
[1764693578011,0.3608,90813.0,90812.0,0.14699]
[1764693578305,0.3608,90813.0,90804.0,0.92235]
[1764693578306,0.14668,90805.0,90804.0,0.14699]
[1764693578506,0.02337277,90805.0,90804.0,0.19278]
[1764693578704,0.001,90810.0,90809.0,0.14699]
[1764693579092,0.02437203,90810.0,90809.0,0.66275]
[1764693579297,0.001,90810.0,90809.0,0.66275]
[1764693579608,0.07534,90802.0,90801.0,0.1580026]
[1764693579910,0.07534,90807.0,90806.0,0.1580021]
[1764693580113,0.09871432,90807.0,90806.0,0.66275]
[1764693580704,0.02337432,90807.0,90806.0,0.66275]
[1764693581101,0.02437432,90807.0,90806.0,0.14699]
[1764693581404,0.17105432,90807.0,90806.0,0.66275]
[1764693581795,0.17005432,90807.0,90806.0,0.66275]
[1764693582001,0.17105432,90807.0,90806.0,0.66275]
[1764693582509,0.17705432,90807.0,90806.0,0.66275]
[1764693582710,0.007,90807.0,90806.0,0.66275]
[1764693583408,0.17805895,90807.0,90806.0,0.07122]
[1764693583709,0.03137895,90807.0,90806.0,0.66279]
[1764693583907,0.03037895,90807.0,90806.0,0.66279]
[1764693584208,0.17805895,90807.0,90806.0,0.5158]
[1764693584705,0.17805895,90807.0,90803.0,0.0110124]
[1764693584706,0.14668,90804.0,90803.0,0.0110124]
[1764693584898,0.17005895,90804.0,90803.0,0.6738024]
[1764693585406,0.17005895,90804.0,90803.0,0.67303144]
[1764693586107,0.17005895,90804.0,90803.0,0.15723144]
[1764693586410,0.17005895,90804.0,90803.0,0.67303144]
[1764693586611,0.10471895,90804.0,90803.0,0.67303144]
[1764693586811,0.02937895,90804.0,90803.0,0.67303144]
[1764693587314,0.03037895,90804.0,90803.0,0.67303144]
[1764693587515,0.17705895,90804.0,90803.0,0.15723144]
[1764693587713,0.17705895,90804.0,90803.0,0.67303144]
[1764693588010,0.17605895,90804.0,90803.0,0.67303144]
[1764693588314,0.17705895,90804.0,90803.0,0.67303144]
[1764693588714,0.17705895,90804.0,90797.0,0.00016515]
[1764693588909,0.14668,90798.0,90797.0,0.00016515]
[1764693589110,0.17005895,90798.0,90797.0,0.00016515]
[1764693590007,0.09871895,90798.0,90797.0,0.00016515]
[1764693590210,0.09871895,90798.0,90797.0,0.14715515]
[1764693590211,0.02337895,90798.0,90797.0,0.14715515]
[1764693590403,0.3608,90803.0,90801.0,0.0110127]
[1764693590607,0.02378966,90802.0,90801.0,0.1580027]
[1764693590803,0.17046966,90802.0,90801.0,0.14699]
[1764693591203,0.02378966,90802.0,90801.0,0.14699]
[1764693592018,0.09912966,90802.0,90801.0,0.14699]
[1764693592204,0.02378966,90802.0,90801.0,0.14699]
[1764693593618,0.03078966,90802.0,90801.0,0.14699]
[1764693594225,0.03078966,90802.0,90801.0,0.66283]
[1764693594421,0.02978966,90802.0,90801.0,0.66283]
[1764693595220,0.02378966,90802.0,90801.0,0.66283]
[1764693595521,0.02878966,90802.0,90801.0,0.66283]
[1764693595708,0.02878966,90802.0,90801.0,0.14699]
[1764693596018,0.10412966,90802.0,90801.0,0.66279]
[1764693596218,0.10512966,90802.0,90801.0,0.66279]
[1764693596415,0.02978966,90802.0,90801.0,0.66279]
[1764693596616,0.02478966,90802.0,90801.0,0.66279]
[1764693596812,0.02978966,90802.0,90801.0,0.66279]
[1764693597215,0.02878966,90802.0,90801.0,0.66279]